bitfinex-derivatives/quotes_ETHF0:USTF0_20250308
["timestamp","ask_amount","ask_price","bid_price","bid_amount"]
[1741416248091,2.93836,2138.9,2138.6,0.07701311]
[1741416248392,0.93527,2138.8,2138.7,0.6337]
[1741416248596,0.93527,2138.8,2138.7,0.7137]
[1741416249189,0.00701311,2139.0,2138.7,0.7137]
[1741416249392,0.93526,2138.9,2138.8,0.6465]
[1741416250693,0.94223311,2139.0,2138.8,0.6465]
[1741416250994,0.93522,2138.9,2138.8,0.6465]
[1741416251191,1.2488,2139.6,2138.8,4.7265]
[1741416251389,0.93507,2139.3,2139.1,3.2078]
[1741416251588,0.93507,2139.3,2139.2,1.3046]
[1741416251795,0.93507,2139.3,2139.2,1.3146]
[1741416252290,1.2488,2139.6,2139.2,1.3146]
[1741416252596,0.00701311,2139.5,2139.2,1.3146]
[1741416253191,0.93505,2139.3,2139.2,1.3046]
[1741416254690,0.00701311,2139.5,2139.2,1.3046]
[1741416254898,0.94198311,2139.5,2139.2,2.25967]
[1741416255097,0.00701311,2139.5,2139.3,0.662]
[1741416255300,0.94199311,2139.5,2139.3,0.662]
[1741416257592,0.00701311,2139.5,2139.3,0.662]
[1741416257896,0.94198311,2139.5,2139.3,0.662]
[1741416258493,0.00701311,2139.5,2139.3,1.60701]
[1741416258796,0.00701311,2139.5,2139.3,0.672]
[1741416259097,0.94199311,2139.5,2139.3,0.672]
[1741416259300,0.00701311,2139.5,2139.3,0.672]
[1741416259496,0.00701311,2139.5,2139.3,1.60703]
[1741416259697,0.00701311,2139.5,2139.3,0.672]
[1741416260001,0.00701311,2139.5,2139.4,0.935]
[1741416260199,0.00701311,2139.5,2139.4,0.965]
[1741416260904,0.93481,2139.9,2139.6,0.9349]
[1741416261093,0.93481,2139.9,2139.7,1.2401]
[1741416261995,0.93481,2139.9,2139.7,1.8498]
[1741416262598,3.3042,2140.1,2139.7,1.8498]
[1741416262796,3.2078,2140.0,2139.4,3.2078]
[1741416262998,3.2078,2140.0,2139.4,3.3378]
[1741416262999,0.93493,2139.6,2139.4,3.3378]
[1741416263199,0.93496,2139.5,2139.4,3.3378]
[1741416263397,1.59956,2139.5,2139.4,3.3378]
[1741416264789,5.54473,2140.0,2139.4,3.3378]
[1741416264998,0.9349,2139.7,2139.4,4.27279]
[1741416265199,0.9349,2139.7,2139.5,1.2507]
[1741416265399,0.9349,2139.7,2139.5,1.2807]
[1741416266104,0.93488,2139.7,2139.5,1.2807]
[1741416267136,0.6646,2139.8,2139.5,1.2807]
[1741416267334,1.56969,2139.7,2139.5,1.2807]
[1741416267498,1.56968,2139.7,2139.5,1.2807]
[1741416269203,1.56968,2139.7,2139.5,2.21566]
[1741416269405,1.56968,2139.7,2139.5,2.84016]
[1741416270305,1.56968,2139.7,2139.5,1.9052]
[1741416270805,1.56968,2139.7,2139.5,2.84016]
[1741416271206,1.56968,2139.7,2139.5,1.9052]
[1741416273502,0.6348,2139.7,2139.5,1.9052]
[1741416273808,0.93492,2139.6,2139.5,1.9052]
[1741416274807,0.93492,2139.6,2139.5,0.6747]
[1741416275005,0.93492,2139.6,2139.5,0.03]
[1741416282309,2.22021,2139.7,2139.5,0.03]
[1741416282509,0.6348,2139.7,2139.5,0.03]
[1741416282713,0.9348,2139.9,2139.6,0.93492]
[1741416282907,0.9348,2139.9,2139.7,1.2612]
[1741416283107,0.9348,2139.9,2139.7,1.9252]
[1741416283514,0.9348,2139.9,2139.7,2.86006]
[1741416283812,0.9348,2139.9,2139.7,1.9252]
[1741416284012,0.9348,2139.9,2139.7,2.86007]
[1741416284910,0.6565,2140.0,2139.8,0.93482]
[1741416285118,5.2338,2140.3,2140.1,0.9347]
[1741416285316,5.2338,2140.3,2140.1,0.06]
[1741416285518,0.93466,2140.2,2140.1,0.06]
[1741416285821,4.14244,2140.3,2140.1,0.06]
[1741416286119,3.2078,2140.3,2140.1,0.06]
[1741416286316,3.2078,2140.3,2140.1,2.82778]
[1741416286517,4.14242,2140.3,2140.1,1.8931]
[1741416287017,4.14242,2140.3,2140.1,2.8278]
[1741416287815,4.14242,2140.3,2140.1,1.8931]
[1741416290421,0.93462,2140.3,2140.1,1.8931]
[1741416290620,0.93462,2140.3,2140.1,2.82779]
[1741416291119,2.2225,2140.4,2140.1,2.82779]
[1741416291311,1.2879,2140.4,2140.1,2.82779]
[1741416291512,0.93461,2140.3,2140.1,2.82779]
[1741416292020,2.2225,2140.4,2140.1,2.82779]
[1741416292216,1.2879,2140.4,2140.1,1.8931]
[1741416292418,0.93464,2140.3,2140.1,1.8931]
[1741416293421,0.93464,2140.3,2140.1,2.8278]
[1741416293614,0.93464,2140.3,2140.1,1.8931]
[1741416294814,0.93464,2140.3,2140.1,2.8278]
[1741416295522,0.93464,2140.3,2140.1,1.8931]
[1741416297118,0.6483,2140.4,2140.2,0.93463]
[1741416297619,0.6483,2140.4,2140.2,0.94464]
[1741416298024,0.6483,2140.4,2140.2,0.01]
[1741416298219,0.93461,2140.3,2140.2,0.01]
[1741416301420,3.8372,2140.5,2139.7,3.2078]
[1741416301421,2.33651,2140.4,2139.7,3.2078]
[1741416301626,1.2425,2140.2,2139.7,3.4278]
[1741416301815,0.93476,2140.0,2139.7,4.36264]
[1741416302020,0.6188,2140.1,2139.7,3.4278]
[1741416302327,1.55353,2140.1,2139.8,2.19321]
[1741416302628,0.6188,2140.1,2139.9,0.93474]
[1741416302825,1.5535,2140.1,2139.9,1.03474]
[1741416303126,1.55352,2140.1,2139.9,0.1]
[1741416303828,0.6188,2140.1,2139.9,0.1]
[1741416304217,1.55353,2140.1,2139.9,0.1]
[1741416304421,0.6188,2140.1,2139.9,0.1]
[1741416304621,5.2298,2140.5,2139.9,0.1]
[1741416304828,0.93463,2140.3,2140.0,0.93472]
[1741416305126,0.9347,2140.1,2140.0,0.14]
[1741416306319,0.93483,2139.8,2139.7,3.2078]
[1741416306627,0.93483,2139.8,2139.7,3.4378]
[1741416307027,1.2849,2139.9,2139.7,3.4378]
[1741416307230,0.93483,2139.8,2139.7,0.23]
[1741416307824,3.2078,2140.2,2139.7,0.23]
[1741416308033,0.93476,2140.0,2139.7,1.16485]
[1741416308933,0.6641,2140.1,2139.7,1.16485]
[1741416308934,0.6641,2140.1,2139.7,0.23]
[1741416309231,0.93483,2139.8,2139.7,3.4378]
[1741416310029,0.93481,2139.9,2139.7,3.4378]
[1741416310430,0.93476,2140.0,2139.7,3.4378]
[1741416310629,0.93476,2140.0,2139.7,4.37263]
[1741416310939,0.6641,2140.1,2139.7,3.4378]
[1741416311129,0.6641,2140.1,2139.9,0.93477]
[1741416311327,0.6641,2140.1,2139.9,1.06477]
[1741416312233,0.6641,2140.1,2139.9,0.13]
[1741416312537,2.024,2140.6,2140.0,3.2078]
[1741416312834,0.6408,2140.6,2140.4,0.93455]
[1741416313035,0.6408,2140.6,2140.5,1.2793]
[1741416313731,1.57528,2140.6,2140.5,1.2793]
[1741416313936,0.6408,2140.6,2140.5,1.2793]
[1741416314436,0.6712,2140.7,2140.5,1.2793]
[1741416314639,0.6712,2140.7,2140.5,1.2893]
[1741416315037,1.60564,2140.7,2140.5,1.2893]
[1741416316232,0.6712,2140.7,2140.5,1.2893]
[1741416316433,1.60564,2140.7,2140.5,1.2893]
[1741416316835,0.6712,2140.7,2140.5,2.22381]
[1741416317236,0.6712,2140.7,2140.6,3.2078]
[1741416317426,0.6712,2140.7,2140.6,3.2278]
[1741416317832,0.6712,2140.7,2140.6,4.16228]
[1741416318031,0.6712,2140.7,2140.6,3.2278]
[1741416318239,1.60564,2140.7,2140.6,0.02]
[1741416320828,0.93452,2140.5,2140.4,0.00701311]
[1741416321037,4.14232,2140.5,2140.4,0.00701311]
[1741416321239,0.93475,2140.0,2139.9,3.2078]
[1741416321540,0.93475,2140.0,2139.9,3.3878]
[1741416322134,0.6232,2140.3,2139.9,3.3878]
[1741416322332,0.00701311,2140.2,2140.0,0.93474]
[1741416322527,0.94168311,2140.2,2140.0,0.08]
[1741416322735,0.94168311,2140.2,2140.0,1.01474]
[1741416323535,0.9347,2140.1,2140.0,0.08]
[1741416328437,0.93474,2140.0,2139.9,3.2078]
[1741416328644,0.93483,2139.8,2139.7,0.00701311]
[1741416328836,0.93483,2139.8,2139.7,0.15701311]
[1741416330843,0.6216,2139.9,2139.7,0.15701311]
[1741416331247,0.6216,2139.9,2139.7,1.09187311]
[1741416331453,1.55639,2139.9,2139.7,1.09187311]
[1741416332252,1.55639,2139.9,2139.7,0.15701311]
[1741416332755,1.55639,2139.9,2139.7,1.09187311]
[1741416333255,0.94168311,2140.2,2139.9,0.93477]
[1741416333460,0.00701311,2140.2,2140.0,0.6225]
[1741416333747,0.9347,2140.1,2140.0,1.2425]
[1741416334053,0.00701311,2140.2,2140.0,1.2425]
[1741416334251,0.00701311,2140.2,2140.1,3.2078]
[1741416334454,0.00701311,2140.2,2140.1,0.1]
[1741416334656,0.94167311,2140.2,2140.1,0.1]
[1741416335049,0.00701311,2140.2,2140.1,0.1]
[1741416335356,0.94167311,2140.2,2140.1,0.1]
[1741416337959,0.00701311,2140.2,2140.1,0.1]
[1741416338847,0.94167311,2140.2,2140.1,0.1]
[1741416344360,0.94167311,2140.2,2139.8,0.6177]
[1741416344361,0.93479,2139.9,2139.8,0.6177]
[1741416344560,0.93479,2139.9,2139.8,0.8277]
[1741416344863,3.21481311,2140.2,2139.8,1.4747]
[1741416345060,0.93477,2140.0,2139.8,1.4747]
[1741416345261,0.93479,2139.9,2139.8,1.4747]
[1741416346256,0.93483,2139.8,2139.7,0.00701311]
[1741416346452,2.84313,2139.8,2139.7,0.00701311]
[1741416347562,2.17533,2139.8,2139.7,0.00701311]
[1741416348864,1.2405,2139.8,2139.7,0.00701311]
[1741416349065,0.93481,2139.9,2139.7,0.00701311]
[1741416349366,0.93481,2139.9,2139.7,0.62041311]
[1741416349561,1.9084,2140.1,2139.7,0.63041311]
[1741416349860,1.9084,2140.1,2139.8,1.3094]
[1741416350066,0.93475,2140.0,2139.8,1.3594]
[1741416350257,1.9084,2140.1,2139.8,1.3594]
[1741416350453,0.93479,2139.9,2139.8,1.3594]
[1741416350658,0.93477,2140.0,2139.8,1.3594]
[1741416351368,0.93479,2139.9,2139.8,1.3594]
[1741416352761,0.93479,2139.9,2139.8,0.05]
[1741416352962,0.93483,2139.8,2139.7,0.00701311]
[1741416353159,0.93483,2139.8,2139.7,0.02701311]
[1741416353760,0.93483,2139.8,2139.7,0.00701311]
[1741416354162,1.59403,2139.8,2139.7,0.00701311]
[1741416358459,4.6592,2139.8,2139.3,3.2078]
[1741416358657,0.935,2139.4,2139.3,3.4378]
[1741416362365,0.634,2139.5,2139.3,3.4378]
[1741416362571,1.2704,2139.7,2139.3,3.4378]
[1741416362774,0.6306,2139.8,2139.4,1.3143]
[1741416363077,0.93496,2139.6,2139.4,1.5443]
[1741416363371,0.93496,2139.6,2139.4,2.4793]
[1741416363570,0.6306,2139.8,2139.4,1.5443]
[1741416363768,0.9348,2139.9,2139.6,4.1427]
[1741416363969,0.93483,2139.8,2139.7,0.6274]
[1741416364772,0.93483,2139.9,2139.7,0.6774]
[1741416364972,0.93483,2139.9,2139.8,1.3143]
[1741416365974,0.93487,2139.7,2139.6,3.2078]
[1741416366167,0.93487,2139.7,2139.6,3.3378]
[1741416367674,0.93487,2139.7,2139.6,0.13]
[1741416368377,0.93487,2139.7,2139.2,3.2078]
[1741416368378,0.93505,2139.3,2139.2,3.2078]
[1741416368673,0.93505,2139.3,2139.2,4.8778]
[1741416368976,0.93505,2139.3,2139.2,1.67]
[1741416375082,0.93509,2139.2,2139.0,1.3181]
[1741416375281,2.20759,2139.2,2139.1,0.20701311]
[1741416376775,1.2725,2139.2,2139.1,0.20701311]
[1741416376979,1.2725,2139.5,2139.1,0.20701311]
[1741416377180,1.2725,2139.5,2139.1,0.81411311]
[1741416377385,0.93507,2139.3,2139.1,1.74923311]
[1741416377587,1.2725,2139.5,2139.1,0.81411311]
[1741416377782,0.93505,2139.3,2139.1,1.74923311]
[1741416378183,1.2725,2139.5,2139.1,1.74923311]
[1741416378385,1.2725,2139.5,2139.1,0.81411311]
[1741416378590,1.2725,2139.5,2139.1,1.74921311]
[1741416378790,0.93506,2139.3,2139.1,1.74921311]
[1741416379287,0.93506,2139.3,2139.1,0.81411311]
[1741416379495,0.93509,2139.2,2139.1,0.20701311]
[1741416380889,0.93509,2139.2,2139.1,0.00701311]
[1741416381278,1.60719,2139.2,2139.1,0.00701311]
[1741416383591,0.93522,2138.9,2138.8,0.6181]
[1741416383786,0.93522,2138.9,2138.8,0.23]
[1741416385192,0.93531,2138.7,2138.6,0.00701311]
[1741416386496,2.58451484,2138.7,2138.6,0.00701311]
[1741416387387,2.33839,2138.6,2137.9,4.75934]
[1741416387589,2.027,2138.5,2137.9,7.0607]
[1741416387793,0.93561,2138.1,2137.9,7.0607]
[1741416388195,1.2945,2138.3,2137.9,7.0607]
[1741416388388,0.93556,2138.2,2138.0,0.93558]
[1741416388594,0.93556,2138.2,2138.0,1.74558]
[1741416389189,0.93556,2138.2,2138.0,0.81]
[1741416389396,3.57540484,2138.7,2138.0,0.81]
[1741416389591,0.93548,2138.4,2138.1,0.93557]
[1741416389798,0.93547,2138.4,2138.1,1.33557]
[1741416390094,3.3215,2138.6,2138.1,1.33557]
[1741416390295,3.3215,2138.6,2138.1,0.4]
[1741416390493,0.93553,2138.2,2138.1,0.4]
[1741416390695,0.93552,2138.3,2138.1,0.4]
[1741416390894,3.3215,2138.6,2138.1,0.4]
[1741416391196,0.93549,2138.3,2138.1,0.4]
[1741416391899,0.93549,2138.3,2138.1,1.33557]
[1741416392096,3.3215,2138.6,2138.1,0.4]
[1741416392297,0.9355,2138.3,2138.1,0.4]
[1741416392484,3.3215,2138.6,2138.1,0.4]
[1741416392686,1.2945,2138.6,2138.1,0.4]
[1741416392895,0.93551,2138.3,2138.1,0.4]
[1741416394202,0.93553,2138.2,2138.1,0.4]
[1741416396901,2.15603,2138.2,2138.1,0.4]
[1741416397304,0.93562,2138.0,2137.9,0.00701311]
[1741416397802,0.93588,2137.4,2137.3,3.2078]
[1741416397995,0.93588,2137.4,2137.3,1.42]
[1741416399607,1.58898,2137.4,2137.3,1.42]
[1741416400203,0.93588,2137.4,2137.3,1.42]
[1741416400801,2.04101311,2137.6,2137.3,1.42]
[1741416401101,2.04101311,2137.6,2137.5,3.2078]
[1741416401305,2.04101311,2137.6,2137.5,3.3978]
[1741416401306,0.00701311,2137.6,2137.5,3.3978]
[1741416401605,0.00701311,2137.6,2137.5,4.045]
[1741416401997,0.00701311,2137.6,2137.5,4.98084]
[1741416402804,0.00701311,2137.6,2137.5,4.045]
[1741416403005,0.94280311,2137.6,2137.5,4.045]
[1741416403806,0.00701311,2137.6,2137.5,4.045]
[1741416404411,0.00701311,2137.6,2137.5,4.98084]
[1741416405107,0.94280311,2137.6,2137.5,0.6472]
[1741416405311,0.94280311,2137.6,2137.5,0.6672]
[1741416405707,0.94280311,2137.6,2137.5,0.02]
[1741416406716,0.00701311,2137.6,2137.3,0.6451]
[1741416407014,0.00701311,2137.6,2137.3,0.63]
[1741416407207,0.93588,2137.4,2137.3,0.63]
[1741416408811,0.93592,2137.3,2137.2,3.2078]
[1741416409013,1.58132,2137.3,2137.2,3.3378]
[1741416409611,1.58132,2137.3,2137.2,0.13]
[1741416411410,0.6454,2137.3,2137.1,0.00701311]
[1741416411616,1.54227,2137.2,2137.1,0.62701311]
[1741416412309,0.6454,2137.3,2137.1,0.62701311]
[1741416412513,0.93597,2137.2,2137.1,0.62701311]
[1741416412922,2.6453,2137.5,2137.1,0.62701311]
[1741416413120,0.93592,2137.3,2137.2,3.2078]
[1741416413313,0.93592,2137.3,2137.2,3.2978]
[1741416415222,0.93592,2137.3,2137.2,3.9532]
[1741416415526,0.93592,2137.3,2137.2,3.2978]
[1741416416923,0.93597,2137.2,2137.1,0.00701311]
[1741416417124,1.55187,2137.2,2137.1,0.57701311]
[1741416420128,0.6159,2137.2,2137.1,0.57701311]
[1741416420333,0.93596,2137.3,2137.1,1.51302311]
[1741416420537,0.93597,2137.2,2137.1,0.57701311]
[1741416421535,0.6219,2137.4,2137.1,0.57701311]
[1741416421836,0.93595,2137.3,2137.1,0.57701311]
[1741416422036,0.6219,2137.4,2137.1,0.57701311]
[1741416422240,0.93596,2137.3,2137.1,0.57701311]
[1741416422433,0.93597,2137.2,2137.1,0.57701311]
[1741416422638,0.6219,2137.4,2137.1,0.57701311]
[1741416423040,0.93597,2137.2,2137.1,0.57701311]
[1741416423238,0.6219,2137.4,2137.1,0.57701311]
[1741416423747,0.93597,2137.2,2137.1,0.57701311]
[1741416423945,0.6219,2137.4,2137.1,0.57701311]
[1741416424136,0.93593,2137.3,2137.1,1.51300311]
[1741416424940,0.93597,2137.2,2137.1,0.57701311]
[1741416425145,0.93595,2137.3,2137.1,0.57701311]
[1741416425645,0.93595,2137.3,2137.1,1.51301311]
[1741416425846,0.93595,2137.3,2137.1,0.57701311]
[1741416426146,0.93594,2137.3,2137.1,1.51302311]
[1741416426343,1.54216,2137.5,2137.3,0.93591]
[1741416426646,0.93588,2137.4,2137.3,0.03]
[1741416427041,1.59918,2137.4,2137.3,0.03]
[1741416428639,1.59918,2137.4,2137.1,0.00701311]
[1741416428640,0.93597,2137.2,2137.1,0.00701311]
[1741416428844,0.93597,2137.2,2137.1,0.70701311]
[1741416432749,2.97297,2137.2,2137.1,0.00701311]
[1741416433253,3.34184892,2137.2,2137.1,0.00701311]
[1741416433752,2.97297,2137.2,2137.1,0.00701311]
[1741416434654,3.33732899,2137.2,2137.1,0.00701311]
[1741416434854,2.97297,2137.2,2137.1,0.00701311]
[1741416436258,3.61217,2137.2,2137.1,0.00701311]
[1741416440552,0.93597,2137.2,2137.1,0.00701311]
[1741416441551,0.93597,2137.2,2137.1,0.06701311]
[1741416441752,3.05891581,2137.5,2137.1,0.70031311]
[1741416441953,0.93592,2137.3,2137.2,0.6335]
[1741416442155,0.93592,2137.3,2137.2,0.7035]
[1741416443762,2.6898,2137.5,2137.2,0.7035]
[1741416443763,0.6578,2137.5,2137.2,0.7035]
[1741416443960,0.93592,2137.3,2137.2,0.7035]
[1741416445061,3.29181311,2137.6,2137.2,0.7035]
[1741416445262,0.93592,2137.3,2137.2,0.7035]
[1741416446355,3.29081311,2137.6,2137.2,4.84724]
[1741416446659,0.93592,2137.3,2137.2,3.9113]
[1741416447363,6.00778452,2137.6,2137.1,0.00701311]
[1741416447662,0.93597,2137.2,2137.1,0.07701311]
[1741416448765,2.96797,2137.2,2137.1,0.00701311]
[1741416449762,4.25807,2137.2,2137.1,0.00701311]
[1741416450367,3.3221,2137.2,2136.6,4.478]
[1741416450668,0.93619,2136.7,2136.6,6.788]
[1741416451965,0.93619,2136.7,2136.6,5.5178]
[1741416455060,0.93619,2136.7,2136.6,2.31]
[1741416455267,2.97019,2136.7,2136.6,2.31]
[1741416455567,0.93627,2136.5,2136.4,0.00467543]
[1741416455867,0.93627,2136.5,2136.4,1.55467543]
[1741416458767,2.034,2136.7,2136.5,0.93626]
[1741416458970,2.9702,2136.7,2136.5,2.05626]
[1741416459265,2.034,2136.7,2136.6,0.93623]
[1741416459563,3.2078,2137.1,2136.6,0.25]
[1741416459564,5.2398,2137.1,2136.6,0.25]
[1741416459866,0.93612,2136.9,2136.7,1.57008]
[1741416460057,0.93612,2136.9,2136.7,2.53898]
[1741416460258,2.032,2137.1,2136.7,1.6028]
[1741416460559,0.93603,2137.1,2136.8,4.14394]
[1741416460764,5.54754,2137.4,2136.8,3.3878]
[1741416460765,5.2418,2137.4,2136.8,3.3878]
[1741416460969,0.9359,2137.4,2137.1,0.93599]
[1741416461162,0.93594,2137.3,2137.2,1.2614]
[1741416461363,0.38444452,2137.6,2137.2,1.4714]
[1741416461565,0.93591,2137.4,2137.2,1.4714]
[1741416461965,0.93592,2137.3,2137.2,1.4714]
[1741416462164,0.00701311,2137.6,2137.2,1.4714]
[1741416462365,0.93591,2137.4,2137.2,1.4714]
[1741416462761,0.00701311,2137.6,2137.2,2.40737]
[1741416462966,0.93588,2137.4,2137.2,2.40737]
[1741416463169,0.93588,2137.4,2137.2,1.4714]
[1741416463472,0.93588,2137.4,2137.3,0.607]
[1741416463664,0.93588,2137.4,2137.3,0.747]
[1741416464361,0.93586,2137.5,2137.3,0.747]
[1741416464561,0.93588,2137.4,2137.3,0.747]
[1741416465160,0.00701311,2137.6,2137.3,0.747]
[1741416465362,0.93587,2137.5,2137.3,0.747]
[1741416465974,0.93588,2137.4,2137.3,0.747]
[1741416466173,0.00701311,2137.6,2137.3,1.68291]
[1741416466174,0.94284311,2137.6,2137.3,1.68291]
[1741416466372,0.93584,2137.5,2137.3,1.68291]
[1741416467072,0.00701311,2137.6,2137.3,1.68291]
[1741416467273,0.94283311,2137.6,2137.4,3.2078]
[1741416467474,0.00701311,2137.6,2137.4,3.2578]
[1741416467771,0.00701311,2137.6,2137.5,0.93584]
[1741416467977,0.00701311,2137.6,2137.5,1.09584]
[1741416468376,0.94280311,2137.6,2137.5,0.16]
[1741416469278,0.93584,2137.5,2137.4,3.2078]
[1741416469478,2.23164,2137.5,2137.4,3.2078]
[1741416470680,1.2958,2137.5,2136.9,3.2078]
[1741416470878,0.6134,2137.4,2136.9,3.5578]
[1741416471068,0.93603,2137.1,2136.9,4.4939]
[1741416471475,0.6134,2137.4,2136.9,4.4939]
[1741416471476,0.93605,2137.0,2136.9,3.5578]
[1741416471773,0.93605,2137.0,2136.9,0.35]
[1741416471972,3.2078,2137.1,2136.5,3.2078]
[1741416472179,1.2769,2136.9,2136.5,4.2278]
[1741416473182,0.9362,2136.7,2136.5,4.2278]
[1741416473478,1.2769,2136.9,2136.5,4.2278]
[1741416473881,1.2769,2136.9,2136.5,5.16406]
[1741416474074,1.2769,2136.9,2136.5,4.2278]
[1741416474281,1.56761,2136.9,2136.6,0.93619]
[1741416474476,1.56761,2136.9,2136.6,1.15619]
[1741416475172,2.038,2137.1,2136.6,0.22]
[1741416475378,0.93611,2136.9,2136.6,1.1562]
[1741416475782,0.93607,2137.0,2136.8,3.2078]
[1741416476080,0.93607,2137.0,2136.8,3.2378]
[1741416476380,0.93607,2137.0,2136.8,3.8708]
[1741416476575,2.038,2137.1,2136.8,4.5322]
[1741416476783,2.97696,2137.3,2137.0,0.93605]
[1741416476987,0.93601,2137.1,2137.0,0.14]
[1741416478077,2.6748,2137.3,2137.0,0.05]
[1741416478476,0.93601,2137.1,2137.0,0.05]
[1741416479980,0.93614,2136.8,2136.5,5.47285]
[1741416480176,0.93613,2136.9,2136.6,0.93621]
[1741416480480,1.57268,2137.0,2136.6,1.24619]
[1741416480680,0.6366,2137.0,2136.8,3.2078]
[1741416480983,0.9361,2136.9,2136.8,3.3778]
[1741416486485,0.9361,2136.9,2136.8,0.17]
[1741416486888,2.2347,2136.9,2136.8,0.17]
[1741416488890,3.3356,2136.9,2136.5,3.2078]
[1741416489091,0.93623,2136.6,2136.5,3.9778]
[1741416490181,0.93623,2136.6,2136.5,0.77]
[1741416490687,1.59333,2136.6,2136.5,0.77]
[1741416491395,0.93627,2136.5,2136.4,0.00467543]
[1741416491591,3.64157,2136.5,2136.4,0.00467543]
[1741416492591,6.84937,2136.5,2136.4,0.00467543]
[1741416493291,3.64157,2136.5,2136.4,0.10467543]
[1741416494587,2.97327,2136.5,2136.4,0.10467543]
[1741416496495,0.6571,2136.6,2136.4,0.10467543]
[1741416496703,2.97022,2136.7,2136.5,0.6701]
[1741416496897,2.97022,2136.7,2136.5,4.94416]
[1741416497195,2.97022,2136.7,2136.5,4.0079]
[1741416497591,0.6628,2136.9,2136.5,4.0079]
[1741416497786,0.38145378,2137.2,2136.5,4.0079]
[1741416497787,0.6363,2137.2,2136.8,0.93611]
[1741416497989,0.6363,2137.2,2136.9,1.3357]
[1741416498299,0.93601,2137.1,2137.0,0.6726]
[1741416498687,0.93605,2137.0,2136.9,0.6728]
[1741416498892,1.58925,2137.0,2136.9,0.05]
[1741416503596,0.9361,2136.9,2136.8,3.2078]
[1741416503791,0.9361,2136.9,2136.8,3.2678]
[1741416504999,0.6532,2137.0,2136.8,3.2678]
[1741416505203,0.9361,2136.9,2136.8,3.2678]
[1741416506603,0.9361,2136.9,2136.8,3.2078]
[1741416508007,2.9691,2136.9,2136.8,3.2078]
[1741416508501,0.93627,2136.5,2136.4,0.00467543]
[1741416508702,0.93627,2136.5,2136.4,0.15467543]
[1741416514119,3.2078,2136.7,2136.4,0.15467543]
[1741416514522,3.2868,2136.8,2136.5,1.9499]
[1741416514713,0.9362,2136.7,2136.5,2.1299]
[1741416514924,0.9362,2136.7,2136.5,3.06615]
[1741416515214,0.93623,2136.6,2136.5,2.1299]
[1741416515818,6.1318,2136.7,2135.5,3.2078]
[1741416516016,0.93658,2135.8,2135.7,0.6401]
[1741416516218,0.93658,2135.8,2135.7,2.5001]
[1741416516417,2.6835,2136.0,2135.7,2.5001]
[1741416516609,2.047,2136.0,2135.7,2.5001]
[1741416516809,2.9835,2136.0,2135.7,3.4367]
[1741416517014,2.047,2136.0,2135.7,3.4367]
[1741416517214,2.98353,2136.0,2135.7,2.5001]
[1741416517921,2.047,2136.0,2135.7,2.5001]
[1741416518221,0.93654,2135.9,2135.7,2.5001]
[1741416518615,0.93658,2135.8,2135.7,2.5001]
[1741416520520,3.2078,2136.0,2135.7,2.5001]
[1741416520725,0.00701311,2136.1,2135.8,3.2078]
[1741416520726,0.94350311,2136.1,2135.8,3.2078]
[1741416520925,0.94350311,2136.1,2135.8,4.72438]
[1741416521123,0.00701311,2136.1,2135.9,0.93649]
[1741416521422,0.00701311,2136.1,2135.9,0.2]
[1741416521423,0.94347311,2136.1,2135.9,0.2]
[1741416521612,0.94347311,2136.1,2136.0,0.6627]
[1741416521813,0.94347311,2136.1,2136.0,0.7827]
[1741416526319,0.94347311,2136.1,2136.0,0.12]
[1741416526520,0.93654,2135.9,2135.8,3.2078]
[1741416526719,0.93654,2135.9,2135.8,0.46]
[1741416528122,0.93654,2135.9,2135.8,3.6678]
[1741416528832,0.66771311,2136.1,2135.8,3.6678]
[1741416528833,0.00701311,2136.1,2135.8,3.6678]
[1741416529430,0.93649,2136.0,2135.8,3.6678]
[1741416529730,0.93654,2135.9,2135.8,3.6678]
[1741416530329,0.93652,2136.0,2135.8,3.6678]
[1741416530530,0.94349311,2136.1,2135.8,4.60434]
[1741416530731,0.94349311,2136.1,2135.9,0.6683]
[1741416530934,0.94349311,2136.1,2135.9,0.9083]
[1741416531127,0.94349311,2136.1,2136.0,0.672]
[1741416531331,0.94349311,2136.1,2136.0,0.822]
[1741416531836,0.00701311,2136.1,2136.0,0.822]
[1741416532433,0.6475,2136.5,2136.0,0.822]
[1741416532625,0.93645,2136.1,2136.0,0.822]
[1741416532933,0.93645,2136.1,2136.0,0.15]
[1741416533533,0.00701311,2136.3,2136.0,0.15]
[1741416533837,0.93641,2136.2,2136.1,0.6439]
[1741416534035,0.93641,2136.2,2136.1,0.7939]
[1741416534726,0.00701311,2136.3,2136.1,1.73032]
[1741416534932,0.94338311,2136.3,2136.1,4.93814]
[1741416535132,0.00701311,2136.3,2136.2,0.6369]
[1741416535333,0.00701311,2136.3,2136.2,1.69331]
[1741416535730,0.00701311,2136.3,2136.2,5.69331]
[1741416537635,1.2187,2136.9,2136.2,5.69331]
[1741416537837,0.93616,2136.8,2136.6,3.2078]
[1741416538039,0.93616,2136.8,2136.7,1.2481]
[1741416538227,0.93616,2136.8,2136.7,1.2581]
[1741416538628,1.2187,2136.9,2136.7,1.2581]
[1741416538833,0.94310311,2137.0,2136.7,2.19428]
[1741416539035,0.93611,2136.9,2136.7,1.9121]
[1741416539440,0.00701311,2137.0,2136.8,0.93612]
[1741416539637,0.00701311,2137.0,2136.9,3.2078]
[1741416539638,0.94307311,2137.0,2136.9,3.2078]
[1741416539832,0.00701311,2137.0,2136.9,3.3478]
[1741416540441,0.94306311,2137.0,2136.9,3.3478]